Workbook

Sheet Disclaimer
B3: 2015-16 A&E model.xlsx
B5: Produced by: Monitor

Sheet Navigation
B2: Steps | C2: Worksheet / Intermediary steps | D2: Overview | E2: Input tables | F2: Data source | G2: Date last updated
B3: 1>> TED Prices | C3: TED A&E | D3: This worksheet has the TED prices for A&E
B4: 2 >> SQL inputs | C4: A&E SQL Output | D4: This worksheet has the total cost and activities. | E4: [output].[OPATT_FinalTariff] | F4: Monitor SQL | G4: 2014-06-18
B5: 3 >> Non SQL inputs | C5: Price Adjustments | D5: A variety of factors to adjust the prices. Includes: inflation, efficiency, CNST and quantum adjustment. | F5: Mixed (Monitor & External) | G5: 2014-06-18
C6: 2013-14 A&E Tariff
C7: 2014-15 A&E Tariff
C8: Expert & Monitor Final Comments | D8: This worksheet displays the changes to tariffs agreed by Monitor. | G8: 2014-07-15
B9: 4 >> Processing | C9: A&E 15-16 Draft Model | D9: Derived table. This is the mapping for percentage split of each TFCs based on HRGs
B10: 5>> Output | C10: Link Sheet | D10: Compares the 2015/16 final prices with that of 2014/15 and 2013/14 | F10: PbR 13/14 * 14/15 prices (for % diff calcs)
B13: Colour cordination
C14: TED Prices
C15: SQL figures
C16: Non-SQL figures
C17: Processing steps
C18: Output

Sheet TED A&E
A1: 2015-16 tariff - A&E
A2: Home
C3: Tariff (£)
A4: HRG code | B4: HRG name | C4: Type 1 and 2 Departments | D4: Type 3 Departments
A5: VB01Z | B5: Any investigation with category 5 treatment | C5: =VLOOKUP('TED A&E'!A5,'Link Sheet'!B:E,3,FALSE) -> 233.0662428 | D5: =VLOOKUP(A5,'Link Sheet'!B:E,4,FALSE) -> 55.54486318
A6: VB02Z | B6: Category 3 investigation with category 4 treatment | C6: =VLOOKUP('TED A&E'!A6,'Link Sheet'!B:E,3,FALSE) -> 220.2668505 | D6: =VLOOKUP(A6,'Link Sheet'!B:E,4,FALSE) -> 55.54486318
A7: VB03Z | B7: Category 3 investigation with category 1-3 treatment | C7: =VLOOKUP('TED A&E'!A7,'Link Sheet'!B:E,3,FALSE) -> 187.091783 | D7: =VLOOKUP(A7,'Link Sheet'!B:E,4,FALSE) -> 55.54486318
A8: VB04Z | B8: Category 2 investigation with category 4 treatment | C8: =VLOOKUP('TED A&E'!A8,'Link Sheet'!B:E,3,FALSE) -> 164.5065304 | D8: =VLOOKUP(A8,'Link Sheet'!B:E,4,FALSE) -> 55.54486318
A9: VB05Z | B9: Category 2 investigation with category 3 treatment | C9: =VLOOKUP('TED A&E'!A9,'Link Sheet'!B:E,3,FALSE) -> 142.6016446 | D9: =VLOOKUP(A9,'Link Sheet'!B:E,4,FALSE) -> 55.54486318
A10: VB06Z | B10: Category 1 investigation with category 3-4 treatment | C10: =VLOOKUP('TED A&E'!A10,'Link Sheet'!B:E,3,FALSE) -> 99.66250008 | D10: =VLOOKUP(A10,'Link Sheet'!B:E,4,FALSE) -> 55.54486318
A11: VB07Z | B11: Category 2 investigation with category 2 treatment | C11: =VLOOKUP('TED A&E'!A11,'Link Sheet'!B:E,3,FALSE) -> 124.7793467 | D11: =VLOOKUP(A11,'Link Sheet'!B:E,4,FALSE) -> 55.54486318
A12: VB08Z | B12: Category 2 investigation with category 1 treatment | C12: =VLOOKUP('TED A&E'!A12,'Link Sheet'!B:E,3,FALSE) -> 113.344881 | D12: =VLOOKUP(A12,'Link Sheet'!B:E,4,FALSE) -> 55.54486318
A13: VB09Z | B13: Category 1 investigation with category 1-2 treatment | C13: =VLOOKUP('TED A&E'!A13,'Link Sheet'!B:E,3,FALSE) -> 79.18790065 | D13: =VLOOKUP(A13,'Link Sheet'!B:E,4,FALSE) -> 55.54486318
A14: VB10Z | B14: Dental Care | C14: =VLOOKUP('TED A&E'!A14,'Link Sheet'!B:E,3,FALSE) -> 56.24776713 | D14: =VLOOKUP(A14,'Link Sheet'!B:E,4,FALSE) -> 55.54486318
A15: VB11Z | B15: No investigation with no significant treatment | C15: =VLOOKUP('TED A&E'!A15,'Link Sheet'!B:E,3,FALSE) -> 55.54486318 | D15: =VLOOKUP(A15,'Link Sheet'!B:E,4,FALSE) -> 55.54486318
A17: Please note that patients who are dead on arrival (DOA) attract the tariff for VB09Z.

Sheet A&E SQL Output
A1: Home
B2: AnE SQL Output
B4: Final A&E Total Activity and Cost
B10: HRG | C10: SumOfTotal Activity | D10: SumOfTotal Cost
B11: VB01Z | C11: 28002 | D11: 6929753.509
B12: VB02Z | C12: 80774 | D12: 18891658.78
B13: VB03Z | C13: 393335 | D13: 78138787.41
B14: VB04Z | C14: 597172 | D14: 104311439.8
B15: VB05Z | C15: 358112 | D15: 54224152
B16: VB06Z | C16: 450490 | D16: 47672320.59
B17: VB07Z | C17: 1536505 | D17: 203575751.2
B18: VB08Z | C18: 4212098 | D18: 506932036.8
B19: VB09Z | C19: 3638615 | D19: 305945659.2
B20: VB10Z | C20: 2314 | D20: 143090.6295
B21: VB11Z | C21: 5526681 | D21: 337482184.7

Sheet Price Adjustments
A1: Home
C2: Table 1 : Price Adjustments : Inflation and Efficiency for all models | L2: Table 2 : Price Adjustments for quantum reconciliation (if BPT reconciled separately)
C4: Adjustment Type | D4: 2012/13 | E4: 2013/14 | F4: 2014/15 | G4: 2015/16 | H4: Total | L4: Adjustment Type | M4: 2012/13 | N4: 2013/14 | O4: 2014/15 | P4: 2015/16 | Q4: Total
C5: Inflation | D5: 0.022 | E5: 0.027 | F5: 0.025 | G5: 0 | H5: =(D5+1)*(E5+1)*(F5+1)*(G5+1)-1 -> 0.07583385 | L5: Inflation | M5: 0.022 | N5: 0.027 | O5: 0.025 | P5: 0 | Q5: =(M5+1)*(N5+1)*(O5+1)*(P5+1)-1 -> 0.07583385
C6: Efficiency* | D6: -0.037 | E6: -0.04 | F6: -0.04 | G6: 0 | H6: -0.1124992 | L6: Efficiency | M6: -0.04 | N6: -0.04 | O6: -0.04 | P6: 0 | Q6: =(M6+1)*(N6+1)*(O6+1)*(P6+1)-1 -> -0.115264
C7: Inflation and Efficiency (total adjustment) | D7: =SUM(D5:D6) -> -0.015 | E7: =SUM(E5:E6) -> -0.013 | F7: -0.015 | G7: =(1+G5)*(1+G6)-1 -> 0 | H7: =(1+D7)*(1+E7)*(1+F7)*(1+G7)-1 -> -0.042387925 | L7: Inflation and Efficiency (total adjustment) | M7: =SUM(M5:M6) -> -0.018 | N7: =SUM(N5:N6) -> -0.013 | O7: -0.015 | P7: =(1+P5)*(1+P6)-1 -> 0 | Q7: =(M7+1)*(N7+1)*(O7+1)*(P7+1)-1 -> -0.04530451
C10: * In 2012-13 the efficiency assumption of 4% was reduced by 0.3% to reflect that BPTs had the effect of reducing overall reimbusement
C11: We use a chain linking the post adjustments for joining the efficency and inflation adjustment together from 2015/16 onwards (this is a slight methodological change from the 13/14 DH method).
B13: Table 3: Price Adjustments : CNST increase / decrease
B15: Sub-chapter | C15: 2012/13 | D15: 2013/14 | E15: 2014/15 | F15: 2015/16 | G15: Total
B16: AA | C16: 0.0045 | D16: 0.002712063145 | E16: 0.004033119289 | F16: 0 | G16: =(1+C16)*(1+D16)*(1+E16)*(1+F16)-1 -> 0.01128652305
B17: AB | C17: 0.003 | D17: 0.004663905428 | E17: 0.002516899562 | F17: 0 | G17: =(1+C17)*(1+D17)*(1+E17)*(1+F17)-1 -> 0.0102141212
B18: BZ | C18: 0.0026 | D18: 0.001713562994 | E18: 0.002296560969 | F18: 0 | G18: 0.006624495819
B19: CZ | C19: 0.0012 | D19: 0.0007983160055 | E19: 0.000822276977 | F19: 0 | G19: 0.002823194919
B20: DZ | C20: 0.0004 | D20: 0.002098834894 | E20: 1.128188292e-05 | F20: 0 | G20: 0.002510984512
B21: EA | C21: 0.0014 | D21: 0.0006837614134 | E21: 0.0008701941948 | F21: 0 | G21: 0.002956726984
B22: EB | C22: 0.0007 | D22: 0.000901473844 | E22: 0.0007278222028 | F22: 0 | G22: 0.002331093126
B23: FZ | C23: 0.0016 | D23: 0.006943427676 | E23: 0.002093430024 | F23: 0 | G23: 0.01066587551
B24: GA | C24: 0.0017 | D24: 0.008392996253 | E24: 0.003254878259 | F24: 0 | G24: 0.01339504052
B25: GB | C25: 0.0011 | D25: 0.003985765792 | E25: 0.001467044768 | F25: 0 | G25: 0.00656466238
B26: GC | C26: 0.0016 | D26: 0.00613967763 | E26: 0.001781141102 | F26: 0 | G26: 0.009544445171
B27: HA | C27: 0.0056 | D27: 0.01145871583 | E27: 0.003924756907 | F27: 0 | G27: 0.0211148447
B28: HB | C28: 0.005 | D28: 0.01060436319 | E28: 0.003655779873 | F28: 0 | G28: 0.01937040484
B29: HC | C29: 0.0087 | D29: 0.006316397188 | E29: 0.005242168024 | F29: 0 | G29: 0.02039252441
B30: HD | C30: 0.0014 | D30: 0.004222183911 | E30: 0.0001246154115 | F30: 0 | G30: 0.005753411727
B31: HR | C31: 0.0045 | D31: 0.006112531021 | E31: 0.002050731937 | F31: 0 | G31: 0.01271258921
B32: JA | C32: 0.0012 | D32: 0.006430406351 | E32: 0.001279428069 | F32: 0 | G32: 0.008927323336
B33: JC | C33: 0.0019 | D33: 0.003651083081 | E33: 0.001780393636 | F33: 0 | G33: 0.007348309239
B34: JD | C34: 0.0009 | D34: 0.002672996107 | E34: 0.001048602633 | F34: 0 | G34: 0.004627753612
B35: KA | C35: 0.0014 | D35: 0.003845044169 | E35: 0.0009441067757 | F35: 0 | G35: 0.00619949097
B36: KB | C36: 0.0003 | D36: 0.0003516695654 | E36: 0.0006602517971 | F36: 0 | G36: 0.001312457199
B37: KC | C37: 0.0004 | D37: 0.001015647892 | E37: 0.0001235232004 | F37: 0 | G37: 0.001539752267
B38: LA | C38: 0.0008 | D38: 0.0008742052009 | E38: 0.0005149158167 | F38: 0 | G38: 0.002190682817
B39: LB | C39: 0.001 | D39: 0.004586339184 | E39: 0.001123499171 | F39: 0 | G39: 0.006720706095
B40: LD | C40: 0 | D40: 0 | E40: 0 | F40: 0 | G40: 0
B41: MA | C41: 0 | D41: 0.05160372561 | E41: 0.004063223745 | F41: 0 | G41: 0.05587662684
B42: MB | C42: 0.0003 | D42: 0.04661929023 | E42: 0.001500912289 | F42: 0 | G42: 0.04850463103
B43: NZ | C43: 0.002 | D43: -0.08928019847 | E43: 0.02826756586 | F43: 0 | G43: -0.06166343923
B44: PA | C44: 0.0039 | D44: 0.0004482750231 | E44: 0.004383444871 | F44: 0 | G44: 0.008752536254
B45: PB | C45: 0 | D45: 0 | E45: 0 | F45: 0 | G45: 0
B46: QZ | C46: 0.0021 | D46: 0.001726564287 | E46: 0.003131934573 | F46: 0 | G46: 0.006974120551
B47: RA | C47: 0 | D47: 0 | E47: 0 | F47: 0 | G47: 0
B48: RC | C48: 0 | D48: 0 | E48: 0 | F48: 0 | G48: 0
B49: SA | C49: 0.0004 | D49: 0.0006341004633 | E49: -0.0005546641212 | F49: 0 | G49: 0.0004791162631
B50: SB | C50: 0 | D50: 0 | E50: 0 | F50: 0 | G50: 0
B51: SC | C51: 0 | D51: 0 | E51: 0 | F51: 0 | G51: 0
B52: UZ | C52: 0 | D52: 0 | E52: 0 | F52: 0 | G52: 0
B53: VA | C53: 0.0047 | D53: 0.01367860879 | E53: 0.003179956653 | F53: 0 | G53: 0.02168150253
B54: WA | C54: 0.0012 | D54: 0.000137765687 | E54: 0.001021018846 | F54: 0 | G54: =(1+C54)*(1+D54)*(1+E54)*(1+F54)-1 -> 0.002360315905
B55: VB | C55: 0.0161 | D55: 0.01153917157 | E55: 0.007335258584 | F55: 0 | G55: =(1+C55)*(1+D55)*(1+E55)*(1+F55)-1 -> 0.03536431404
B56: Maternity* | E56: 0.0283
B57: * Note: Maternity is delivery element only.
B60: Table 4: Quantum Reconciliation (QR)
B62: Components | C62: Value
B63: Admitted patient care | C63: -0.06168399354
B64: Outpatient procedures | C64: 0.0638761997
B65: Outpatient attendances | C65: -0.02147405691
B66: A&E | C66: 0.02323962578
B67: Unbundled services | C67: 0.01568539153
B68: Best Practice Tariffs | C68: -0.06168399354
B69: Maternity pathway | C69: 0
B70: Other mandatory prices | C70: 0
B71: Non-mandatory Prices | C71: 0
B73: Table 5: Price Adjustments : Affordability and other adjustment
B75: Adjustment Type | C75: 2012/13 | D75: 2013/14 | E75: 2014/15 | F75: 2015/16 | G75: Total
B76: APC & OPROC
B77: Factor 1 (Scaling factor used in sql) | D77: -0.0095
B78: Factor 3 (Top slice) | D78: -0.0139759014
B79: Factor 4 (Undo Affordability) | D79: 0.009206128346
B80: Factor 5 (Post SC Affordability) | D80: -0.0065
B81: Factor 6 (Road test adjustment) | D81: -0.0051
B82: Total | D82: -0.02575274555 | G82: -0.02575274555
B84: OPATT
B85: Factor 1 (First affordability) | D85: -0.0095
B86: Factor 2 (Second affordability, ref 2012-13) | D86: -0.015
B87: Factor 4 (Undo first affordability) | D87: 0.0095
B88: Factor 5 (Fourth affordability) | D88: -0.0255
B89: Factor 6 (Road test adjustment) | D89: -0.0051
B90: Total | D90: -0.04509908834 | G90: -0.04509908834
B92: A&E
B93: Factor 1 (First Affordability) | D93: -0.066
B94: Factor 2 (Road test adjustment) | D94: -0.0051
B95: Total | D95: -0.0707634 | G95: -0.0707634
B97: Unbundled Services
B98: Factor 1 (Road test adjustment) | D98: -0.0051
B99: Direct access and outpatient diagnostic imaging services | D99: -0.0051
B100: Unbundled chemotherapy delivery | D100: 0
B101: Unbundled external beam radiotherapy | D101: 0
B102: Total | D102: -0.0051 | G102: -0.0051
B104: Maternity Pathway
B105: Factor 1 (Road test adjustment) | D105: -0.0051
B106: Total | D106: -0.0051 | G106: -0.0051
B108: Non-mandatory
B109: Factor 1 (Road test adjustment) | D109: -0.0051
B110: Total | D110: -0.0051 | G110: -0.0051
B112: BPT
B113: Factor 1 (Road test adjustment) | D113: -0.0051
B114: Acute stroke care | D114: -0.0051
B115: Adult renal dialysis | D115: 0
B116: Daycases | D116: -0.0051
B117: Diabetic ketoacidosis and hypoglycaemia | D117: -0.0051
B118: Early inflammatory arthritis | D118: -0.0051
B119: Endoscopy procedures | D119: -0.0051
B120: Fragility hip fracture | D120: -0.0051
B121: Interventional radiology | D121: -0.0051
B122: Major trauma | D122: 0
B123: Outpatient procedures | D123: -0.0051
B124: Paediatric diabetes year of care | D124: 0
B125: Paediatric epilepsy | D125: 0
B126: Parkinson's disease | D126: -0.0051
B127: Pleural effusion | D127: -0.0051
B128: Primary total hip and knee replacements | D128: -0.0051
B129: Same day emergency care | D129: -0.0051
B130: Transient ischaemic attack | D130: -0.0051
B131: Total | D131: -0.0051 | G131: -0.0051

Sheet 2013-14 A&E Tariff
A1: 2013-14 tariff - A&E | F1: Source: | G1: https://www.gov.uk/government/publications/payment-by-results-pbr-operational-guidance-and-tariffs
A2: Home
C4: Tariff (£)
A5: HRG code | B5: HRG name | C5: Type 1 and 2 Departments | D5: Type 3 Departments
A6: VB01Z | B6: Any investigation with category 5 treatment | C6: 237 | D6: 58
A7: VB02Z | B7: Category 3 investigation with category 4 treatment | C7: 210 | D7: 58
A8: VB03Z | B8: Category 3 investigation with category 1-3 treatment | C8: 164 | D8: 58
A9: VB04Z | B9: Category 2 investigation with category 4 treatment | C9: 139 | D9: 58
A10: VB05Z | B10: Category 2 investigation with category 3 treatment | C10: 130 | D10: 58
A11: VB06Z | B11: Category 1 investigation with category 3-4 treatment | C11: 102 | D11: 58
A12: VB07Z | B12: Category 2 investigation with category 2 treatment | C12: 119 | D12: 58
A13: VB08Z | B13: Category 2 investigation with category 1 treatment | C13: 110 | D13: 58
A14: VB09Z | B14: Category 1 investigation with category 1-2 treatment | C14: 78 | D14: 58
A15: VB10Z | B15: Dental Care | C15: 59 | D15: 58
A16: VB11Z | B16: No investigation with no significant treatment | C16: 58 | D16: 58
A18: Please note that patients who are dead on arrival (DOA) attract the tariff for VB09Z.

Sheet 2014-15 A&E Tariff
A1: 2014-15 tariff - A&E | C1: Source: | D1: http://www.monitor.gov.uk/sites/all/modules/fckeditor/plugins/ktbrowser/_openTKFile.php?id=45704
A2: Home
C3: Tariff (£)
A4: HRG code | B4: HRG name | C4: Type 1 and 2 Departments | D4: Type 3 Departments
A5: VB01Z | B5: Any investigation with category 5 treatment | C5: 235 | D5: 57
A6: VB02Z | B6: Category 3 investigation with category 4 treatment | C6: 208 | D6: 57
A7: VB03Z | B7: Category 3 investigation with category 1-3 treatment | C7: 163 | D7: 57
A8: VB04Z | B8: Category 2 investigation with category 4 treatment | C8: 138 | D8: 57
A9: VB05Z | B9: Category 2 investigation with category 3 treatment | C9: 129 | D9: 57
A10: VB06Z | B10: Category 1 investigation with category 3-4 treatment | C10: 101 | D10: 57
A11: VB07Z | B11: Category 2 investigation with category 2 treatment | C11: 118 | D11: 57
A12: VB08Z | B12: Category 2 investigation with category 1 treatment | C12: 109 | D12: 57
A13: VB09Z | B13: Category 1 investigation with category 1-2 treatment | C13: 77 | D13: 57
A14: VB10Z | B14: Dental Care | C14: 58 | D14: 57
A15: VB11Z | B15: No investigation with no significant treatment | C15: 57 | D15: 57
A17: Please note that patients who are dead on arrival (DOA) attract the tariff for VB09Z.

Sheet Expert & Monitor Final Comments
A1: Home
A2: HRG | B2: HRG name | C2: Rationale and evidence for price changed required. Please also explain the rationale for any alternative prices suggested. | D2: Monitor/NHSE assessment
A3: VB01Z | B3: Emergency Medicine, Any Investigation with Category 5 Treatment | C3: It is difficult to justify reducing the tariff for the most injured/unwell patients as the cost of care will not have decreased. It is likely to have a disporportionate effect on large EDs as care of more complex cases is centralised | D3: no action
A4: VB02Z | B4: Emergency Medicine, Category 3 Investigation with Category 4 Treatment
A5: VB03Z | B5: Emergency Medicine, Category 3 Investigation with Category 1-3 Treatment
A6: VB04Z | B6: Emergency Medicine, Category 2 Investigation with Category 4 Treatment
A7: VB05Z | B7: Emergency Medicine, Category 2 Investigation with Category 3 Treatment
A8: VB06Z | B8: Emergency Medicine, Category 1 Investigation with Category 3-4 Treatment
A9: VB07Z | B9: Emergency Medicine, Category 2 Investigation with Category 2 Treatment
A10: VB08Z | B10: Emergency Medicine, Category 2 Investigation with Category 1 Treatment
A11: VB09Z | B11: Emergency Medicine, Category 1 Investigation with Category 1-2 Treatment
A12: VB10Z | B12: Emergency Medicine, Dental Care
A13: VB11Z | B13: Emergency Medicine, No Investigation with No Significant Treatment

Sheet A&E 15-16 Draft Model
C1: Home
C2: A&E Price Adjustments
C7: Individual adjustment factors
C9: Adjustment Type | E9: ='Price Adjustments'!D4 -> 2012/13 | F9: ='Price Adjustments'!E4 -> 2013/14 | G9: ='Price Adjustments'!F4 -> 2014/15 | H9: ='Price Adjustments'!G4 -> 2015/16 | I9: ='Price Adjustments'!H4 -> Total
C10: CNST | E10: ='Price Adjustments'!C55 -> 0.0161 | F10: ='Price Adjustments'!D55 -> 0.01153917157 | G10: ='Price Adjustments'!E55 -> 0.007335258584 | H10: ='Price Adjustments'!F55 -> 0 | I10: ='Price Adjustments'!G55 -> 0.03536431404
C11: Inflation | E11: ='Price Adjustments'!D5 -> 0.022 | F11: ='Price Adjustments'!E5 -> 0.027 | G11: ='Price Adjustments'!F5 -> 0.025 | H11: ='Price Adjustments'!G5 -> 0 | I11: ='Price Adjustments'!H5 -> 0.07583385
C12: Efficiency | E12: ='Price Adjustments'!D6 -> -0.037 | F12: ='Price Adjustments'!E6 -> -0.04 | G12: ='Price Adjustments'!F6 -> -0.04 | H12: ='Price Adjustments'!G6 -> 0 | I12: ='Price Adjustments'!H6 -> -0.1124992
C13: Inflation and Efficiency | E13: ='Price Adjustments'!D7+E14 -> -0.015 | F13: ='Price Adjustments'!E7+F14 -> -0.0837634 | G13: ='Price Adjustments'!F7+G14 -> -0.015 | H13: ='Price Adjustments'!G7*(1+H14) -> 0 | I13: =(1+E13)*(1+F13)*(1+G13)*(1+H13)-1 -> -0.1110443448
C14: Affordability | E14: ='Price Adjustments'!C95 -> 0 | F14: ='Price Adjustments'!D95 -> -0.0707634 | G14: ='Price Adjustments'!E95 -> 0 | H14: ='Price Adjustments'!F95 -> 0 | I14: =(1+E14)*(1+F14)*(1+G14)*(1+H14)-1 -> -0.0707634
B20: A&E 2015/16 Tariff Method selector | F20: Tariff Selection | H20: A&E 2015/16 Final Tariff (£) | N20: Comparison with 14/15 | T20: Comparison with 13/14
C21: HRG code | D21: HRG name | E21: Pricing method used | F21: Type 1 and 2 Departments | H21: Quantum Adjustment | I21: Final Price Type 1 and 2 after quantum adjustment | J21: Rounded Type 1 and Type 2 Departments | K21: 2015/16 tariff - Type 1 and 2 Departments | L21: 2015/16 tariff Type 3 Departments | N21: Type 1 and 2 Departments | O21: Type 3 Departments | Q21: Type 1 and 2 Departments (percentage difference) | R21: Type 3 Departments (percentage difference) | T21: Type 1 and 2 Departments | U21: Type 3 Departments | W21: Type 1 and 2 Departments (percentage difference) | X21: Type 3 Departments (percentage difference comparison)
C22: VB01Z | D22: Any investigation with category 5 treatment | E22: Modelled | F22: =IF(E22="Modelled",VLOOKUP(C22,$C$41:$M$51,11,FALSE),IF(E22="Rollover",VLOOKUP(C22,$C$61:$M$71,15,FALSE),"Error")) -> 227.7728862 | H22: ='Price Adjustments'!$C$66 -> 0.02323962578 | I22: =F22*(1+H22) -> 233.0662428 | J22: =ROUND(I22,0) -> 233 | K22: =J22 -> 233 | L22: =MIN(K22:K32) -> 56 | N22: =VLOOKUP(C22,'2014-15 A&E Tariff'!A5:D15,3,FALSE) -> 235 | O22: =VLOOKUP(C22,'2014-15 A&E Tariff'!A5:D15,4,FALSE) -> 57 | Q22: =(K22-N22)/K22 -> -0.008583690987 | R22: =(L22-O22)/L22 -> -0.01785714286 | T22: =VLOOKUP(C22,'2013-14 A&E Tariff '!A6:D16,3,FALSE) -> 237 | U22: =VLOOKUP(C22,'2013-14 A&E Tariff '!A6:D16,4,FALSE) -> 58 | W22: =(K22-T22)/K22 -> -0.01716738197 | X22: =(L22-U22)/L22 -> -0.03571428571
C23: VB02Z | D23: Category 3 investigation with category 4 treatment | E23: Modelled | F23: =IF(E23="Modelled",VLOOKUP(C23,$C$41:$M$51,11,FALSE),IF(E23="Rollover",VLOOKUP(C23,$C$61:$M$71,10,FALSE),"Error")) -> 215.2641912 | H23: ='Price Adjustments'!$C$66 -> 0.02323962578 | I23: 220.2668505 | J23: 220 | K23: =J23 -> 220 | L23: 56 | N23: =VLOOKUP(C23,'2014-15 A&E Tariff'!A6:D16,3,FALSE) -> 208 | O23: =VLOOKUP(C23,'2014-15 A&E Tariff'!A6:D16,4,FALSE) -> 57 | Q23: =(K23-N23)/K23 -> 0.05454545455 | R23: =(L23-O23)/L23 -> -0.01785714286 | T23: =VLOOKUP(C23,'2013-14 A&E Tariff '!A7:D17,3,FALSE) -> 210 | U23: =VLOOKUP(C23,'2013-14 A&E Tariff '!A7:D17,4,FALSE) -> 58 | W23: =(K23-T23)/K23 -> 0.04545454545 | X23: =(L23-U23)/L23 -> -0.03571428571
C24: VB03Z | D24: Category 3 investigation with category 1-3 treatment | E24: Modelled | F24: 182.8425897 | H24: ='Price Adjustments'!$C$66 -> 0.02323962578 | I24: 187.091783 | J24: 187 | K24: 187 | L24: 56 | N24: =VLOOKUP(C24,'2014-15 A&E Tariff'!A7:D17,3,FALSE) -> 163 | O24: =VLOOKUP(C24,'2014-15 A&E Tariff'!A7:D17,4,FALSE) -> 57 | Q24: 0.128342246 | R24: -0.01785714286 | T24: =VLOOKUP(C24,'2013-14 A&E Tariff '!A8:D18,3,FALSE) -> 164 | U24: =VLOOKUP(C24,'2013-14 A&E Tariff '!A8:D18,4,FALSE) -> 58 | W24: =(K24-T24)/K24 -> 0.1229946524 | X24: =(L24-U24)/L24 -> -0.03571428571
C25: VB04Z | D25: Category 2 investigation with category 4 treatment | E25: Modelled | F25: 160.7702891 | H25: ='Price Adjustments'!$C$66 -> 0.02323962578 | I25: 164.5065304 | J25: 165 | K25: 165 | L25: 56 | N25: =VLOOKUP(C25,'2014-15 A&E Tariff'!A8:D18,3,FALSE) -> 138 | O25: =VLOOKUP(C25,'2014-15 A&E Tariff'!A8:D18,4,FALSE) -> 57 | Q25: 0.1636363636 | R25: -0.01785714286 | T25: =VLOOKUP(C25,'2013-14 A&E Tariff '!A9:D19,3,FALSE) -> 139 | U25: =VLOOKUP(C25,'2013-14 A&E Tariff '!A9:D19,4,FALSE) -> 58 | W25: 0.1575757576 | X25: -0.03571428571
C26: VB05Z | D26: Category 2 investigation with category 3 treatment | E26: Modelled | F26: 139.3629029 | H26: ='Price Adjustments'!$C$66 -> 0.02323962578 | I26: 142.6016446 | J26: 143 | K26: 143 | L26: 56 | N26: =VLOOKUP(C26,'2014-15 A&E Tariff'!A9:D19,3,FALSE) -> 129 | O26: =VLOOKUP(C26,'2014-15 A&E Tariff'!A9:D19,4,FALSE) -> 57 | Q26: 0.0979020979 | R26: -0.01785714286 | T26: =VLOOKUP(C26,'2013-14 A&E Tariff '!A10:D20,3,FALSE) -> 130 | U26: =VLOOKUP(C26,'2013-14 A&E Tariff '!A10:D20,4,FALSE) -> 58 | W26: 0.09090909091 | X26: -0.03571428571
C27: VB06Z | D27: Category 1 investigation with category 3-4 treatment | E27: Modelled | F27: 97.39898413 | H27: ='Price Adjustments'!$C$66 -> 0.02323962578 | I27: 99.66250008 | J27: 100 | K27: 100 | L27: 56 | N27: =VLOOKUP(C27,'2014-15 A&E Tariff'!A10:D20,3,FALSE) -> 101 | O27: =VLOOKUP(C27,'2014-15 A&E Tariff'!A10:D20,4,FALSE) -> 57 | Q27: -0.01 | R27: -0.01785714286 | T27: =VLOOKUP(C27,'2013-14 A&E Tariff '!A11:D21,3,FALSE) -> 102 | U27: =VLOOKUP(C27,'2013-14 A&E Tariff '!A11:D21,4,FALSE) -> 58 | W27: -0.02 | X27: -0.03571428571
C28: VB07Z | D28: Category 2 investigation with category 2 treatment | E28: Modelled | F28: 121.9453817 | H28: ='Price Adjustments'!$C$66 -> 0.02323962578 | I28: 124.7793467 | J28: 125 | K28: 125 | L28: 56 | N28: =VLOOKUP(C28,'2014-15 A&E Tariff'!A11:D21,3,FALSE) -> 118 | O28: =VLOOKUP(C28,'2014-15 A&E Tariff'!A11:D21,4,FALSE) -> 57 | Q28: 0.056 | R28: -0.01785714286 | T28: =VLOOKUP(C28,'2013-14 A&E Tariff '!A12:D22,3,FALSE) -> 119 | U28: =VLOOKUP(C28,'2013-14 A&E Tariff '!A12:D22,4,FALSE) -> 58 | W28: 0.048 | X28: -0.03571428571
C29: VB08Z | D29: Category 2 investigation with category 1 treatment | E29: Modelled | F29: 110.7706134 | H29: ='Price Adjustments'!$C$66 -> 0.02323962578 | I29: 113.344881 | J29: 113 | K29: 113 | L29: 56 | N29: =VLOOKUP(C29,'2014-15 A&E Tariff'!A12:D22,3,FALSE) -> 109 | O29: =VLOOKUP(C29,'2014-15 A&E Tariff'!A12:D22,4,FALSE) -> 57 | Q29: 0.03539823009 | R29: -0.01785714286 | T29: =VLOOKUP(C29,'2013-14 A&E Tariff '!A13:D23,3,FALSE) -> 110 | U29: =VLOOKUP(C29,'2013-14 A&E Tariff '!A13:D23,4,FALSE) -> 58 | W29: 0.02654867257 | X29: -0.03571428571
C30: VB09Z | D30: Category 1 investigation with category 1-2 treatment | E30: Modelled | F30: 77.38939995 | H30: ='Price Adjustments'!$C$66 -> 0.02323962578 | I30: 79.18790065 | J30: 79 | K30: 79 | L30: 56 | N30: =VLOOKUP(C30,'2014-15 A&E Tariff'!A13:D23,3,FALSE) -> 77 | O30: =VLOOKUP(C30,'2014-15 A&E Tariff'!A13:D23,4,FALSE) -> 57 | Q30: 0.0253164557 | R30: -0.01785714286 | T30: =VLOOKUP(C30,'2013-14 A&E Tariff '!A14:D24,3,FALSE) -> 78 | U30: =VLOOKUP(C30,'2013-14 A&E Tariff '!A14:D24,4,FALSE) -> 58 | W30: 0.01265822785 | X30: -0.03571428571
C31: VB10Z | D31: Dental Care | E31: Modelled | F31: 54.97027843 | H31: ='Price Adjustments'!$C$66 -> 0.02323962578 | I31: 56.24776713 | J31: 56 | K31: 56 | L31: 56 | N31: =VLOOKUP(C31,'2014-15 A&E Tariff'!A14:D24,3,FALSE) -> 58 | O31: =VLOOKUP(C31,'2014-15 A&E Tariff'!A14:D24,4,FALSE) -> 57 | Q31: -0.03571428571 | R31: -0.01785714286 | T31: =VLOOKUP(C31,'2013-14 A&E Tariff '!A15:D25,3,FALSE) -> 59 | U31: =VLOOKUP(C31,'2013-14 A&E Tariff '!A15:D25,4,FALSE) -> 58 | W31: -0.05357142857 | X31: -0.03571428571
C32: VB11Z | D32: No investigation with no significant treatment | E32: Modelled | F32: 54.2833387 | H32: ='Price Adjustments'!$C$66 -> 0.02323962578 | I32: 55.54486318 | J32: 56 | K32: 56 | L32: 56 | N32: =VLOOKUP(C32,'2014-15 A&E Tariff'!A15:D25,3,FALSE) -> 57 | O32: =VLOOKUP(C32,'2014-15 A&E Tariff'!A15:D25,4,FALSE) -> 57 | Q32: -0.01785714286 | R32: -0.01785714286 | T32: =VLOOKUP(C32,'2013-14 A&E Tariff '!A16:D26,3,FALSE) -> 58 | U32: =VLOOKUP(C32,'2013-14 A&E Tariff '!A16:D26,4,FALSE) -> 58 | W32: -0.03571428571 | X32: -0.03571428571
C35: A&E 15/16 draft tariff prices using the 13/14 PbR Method
C36: Type 1 and Type 2 departments
C38: SQL Modelled Values | J38: Additional Adjustments
C39: HRG code | D39: Description | E39: SumOfTotal Activity | F39: SumOfTotal Cost | H39: Modelled Price | I39: CNST | J39: Inflation and Efficiency | K39: Adjustment Application | L39: Difference to prior step | M39: Modelled Tariff
L40: Difference to prior step
C41: VB01Z | D41: Any investigation with category 5 treatment | E41: =VLOOKUP(C41,'A&E SQL Output'!$B$11:$D$22,2,FALSE) -> 28002 | F41: =VLOOKUP(C41,'A&E SQL Output'!$B$11:$D$22,3,FALSE) -> 6929753.509 | H41: =F41/E41 -> 247.4735201 | I41: =$I$10 -> 0.03536431404 | J41: =$I$13 -> -0.1110443448 | K41: =H41*(I41+1)*(J41+1) -> 227.7728862 | L41: =(K41/H41)-1 -> -0.07960703781 | M41: =K41 -> 227.7728862
C42: VB02Z | D42: Category 3 investigation with category 4 treatment | E42: =VLOOKUP(C42,'A&E SQL Output'!$B$11:$D$22,2,FALSE) -> 80774 | F42: =VLOOKUP(C42,'A&E SQL Output'!$B$11:$D$22,3,FALSE) -> 18891658.78 | H42: 233.8829175 | I42: =$I$10 -> 0.03536431404 | J42: =$I$13 -> -0.1110443448 | K42: 215.2641912 | L42: =(K42/H42)-1 -> -0.07960703781 | M42: 215.2641912
C43: VB03Z | D43: Category 3 investigation with category 1-3 treatment | E43: =VLOOKUP(C43,'A&E SQL Output'!$B$11:$D$22,2,FALSE) -> 393335 | F43: =VLOOKUP(C43,'A&E SQL Output'!$B$11:$D$22,3,FALSE) -> 78138787.41 | H43: 198.6570923 | I43: 0.03536431404 | J43: -0.1110443448 | K43: 182.8425897 | L43: -0.07960703781 | M43: 182.8425897
C44: VB04Z | D44: Category 2 investigation with category 4 treatment | E44: =VLOOKUP(C44,'A&E SQL Output'!$B$11:$D$22,2,FALSE) -> 597172 | F44: =VLOOKUP(C44,'A&E SQL Output'!$B$11:$D$22,3,FALSE) -> 104311439.8 | H44: 174.6757045 | I44: 0.03536431404 | J44: -0.1110443448 | K44: 160.7702891 | L44: -0.07960703781 | M44: 160.7702891
C45: VB05Z | D45: Category 2 investigation with category 3 treatment | E45: =VLOOKUP(C45,'A&E SQL Output'!$B$11:$D$22,2,FALSE) -> 358112 | F45: =VLOOKUP(C45,'A&E SQL Output'!$B$11:$D$22,3,FALSE) -> 54224152 | H45: 151.4167411 | I45: 0.03536431404 | J45: -0.1110443448 | K45: 139.3629029 | L45: -0.07960703781 | M45: 139.3629029
C46: VB06Z | D46: Category 1 investigation with category 3-4 treatment | E46: =VLOOKUP(C46,'A&E SQL Output'!$B$11:$D$22,2,FALSE) -> 450490 | F46: =VLOOKUP(C46,'A&E SQL Output'!$B$11:$D$22,3,FALSE) -> 47672320.59 | H46: 105.8232604 | I46: 0.03536431404 | J46: -0.1110443448 | K46: 97.39898413 | L46: -0.07960703781 | M46: 97.39898413
C47: VB07Z | D47: Category 2 investigation with category 2 treatment | E47: =VLOOKUP(C47,'A&E SQL Output'!$B$11:$D$22,2,FALSE) -> 1536505 | F47: =VLOOKUP(C47,'A&E SQL Output'!$B$11:$D$22,3,FALSE) -> 203575751.2 | H47: 132.4927359 | I47: 0.03536431404 | J47: -0.1110443448 | K47: 121.9453817 | L47: -0.07960703781 | M47: 121.9453817
C48: VB08Z | D48: Category 2 investigation with category 1 treatment | E48: =VLOOKUP(C48,'A&E SQL Output'!$B$11:$D$22,2,FALSE) -> 4212098 | F48: =VLOOKUP(C48,'A&E SQL Output'!$B$11:$D$22,3,FALSE) -> 506932036.8 | H48: 120.3514346 | I48: 0.03536431404 | J48: -0.1110443448 | K48: 110.7706134 | L48: -0.07960703781 | M48: 110.7706134
C49: VB09Z | D49: Category 1 investigation with category 1-2 treatment | E49: =VLOOKUP(C49,'A&E SQL Output'!$B$11:$D$22,2,FALSE) -> 3638615 | F49: =VLOOKUP(C49,'A&E SQL Output'!$B$11:$D$22,3,FALSE) -> 305945659.2 | H49: 84.08299838 | I49: 0.03536431404 | J49: -0.1110443448 | K49: 77.38939995 | L49: -0.07960703781 | M49: 77.38939995
C50: VB10Z | D50: Dental Care | E50: =VLOOKUP(C50,'A&E SQL Output'!$B$11:$D$22,2,FALSE) -> 2314 | F50: =VLOOKUP(C50,'A&E SQL Output'!$B$11:$D$22,3,FALSE) -> 143090.6295 | H50: 61.83691853 | I50: 0 | J50: -0.1110443448 | K50: 54.97027843 | L50: -0.1110443448 | M50: 54.97027843
C51: VB11Z | D51: No investigation with no significant treatment | E51: =VLOOKUP(C51,'A&E SQL Output'!$B$11:$D$22,2,FALSE) -> 5526681 | F51: =VLOOKUP(C51,'A&E SQL Output'!$B$11:$D$22,3,FALSE) -> 337482184.7 | H51: 61.06416938 | I51: 0 | J51: -0.1110443448 | K51: 54.2833387 | L51: -0.1110443448 | M51: 54.2833387
C55: A&E 15/16 draft tariff prices using a rollover (14/15 Monitor) Method
C56: Type 1 and Type 2 departments
C58: SQL Modelled Values | J58: Additional Adjustments
C59: HRG code | D59: Description | E59: SumOfTotal Activity | F59: SumOfTotal Cost | H59: 2014/15 Price | I59: CNST | J59: Inflation and Efficiency | K59: Adjustment Application | L59: Difference to prior step | M59: Rollover Tariff
C61: VB01Z | D61: Any investigation with category 5 treatment | E61: - | F61: - | H61: =VLOOKUP(C61,'2014-15 A&E Tariff'!$A$5:$C$15,3,FALSE) -> 235 | I61: =$H$10 -> 0 | J61: =$H$13 -> 0 | K61: =H61*(I61+1)*(J61+1) -> 235 | L61: =(K61/H61)-1 -> 0 | M61: =K61 -> 235
C62: VB02Z | D62: Category 3 investigation with category 4 treatment | E62: - | F62: - | H62: =VLOOKUP(C62,'2014-15 A&E Tariff'!$A$5:$C$15,3,FALSE) -> 208 | I62: =$H$10 -> 0 | J62: =$H$13 -> 0 | K62: 208 | L62: 0 | M62: 208
C63: VB03Z | D63: Category 3 investigation with category 1-3 treatment | E63: - | F63: - | H63: =VLOOKUP(C63,'2014-15 A&E Tariff'!$A$5:$C$15,3,FALSE) -> 163 | I63: 0 | J63: 0 | K63: 163 | L63: 0 | M63: 163
C64: VB04Z | D64: Category 2 investigation with category 4 treatment | E64: - | F64: - | H64: =VLOOKUP(C64,'2014-15 A&E Tariff'!$A$5:$C$15,3,FALSE) -> 138 | I64: 0 | J64: 0 | K64: 138 | L64: 0 | M64: 138
C65: VB05Z | D65: Category 2 investigation with category 3 treatment | E65: - | F65: - | H65: =VLOOKUP(C65,'2014-15 A&E Tariff'!$A$5:$C$15,3,FALSE) -> 129 | I65: 0 | J65: 0 | K65: 129 | L65: 0 | M65: 129
C66: VB06Z | D66: Category 1 investigation with category 3-4 treatment | E66: - | F66: - | H66: =VLOOKUP(C66,'2014-15 A&E Tariff'!$A$5:$C$15,3,FALSE) -> 101 | I66: 0 | J66: 0 | K66: 101 | L66: 0 | M66: 101
C67: VB07Z | D67: Category 2 investigation with category 2 treatment | E67: - | F67: - | H67: =VLOOKUP(C67,'2014-15 A&E Tariff'!$A$5:$C$15,3,FALSE) -> 118 | I67: 0 | J67: 0 | K67: 118 | L67: 0 | M67: 118
C68: VB08Z | D68: Category 2 investigation with category 1 treatment | E68: - | F68: - | H68: =VLOOKUP(C68,'2014-15 A&E Tariff'!$A$5:$C$15,3,FALSE) -> 109 | I68: 0 | J68: 0 | K68: 109 | L68: 0 | M68: 109
C69: VB09Z | D69: Category 1 investigation with category 1-2 treatment | E69: - | F69: - | H69: =VLOOKUP(C69,'2014-15 A&E Tariff'!$A$5:$C$15,3,FALSE) -> 77 | I69: 0 | J69: 0 | K69: 77 | L69: 0 | M69: 77
C70: VB10Z | D70: Dental Care | E70: - | F70: - | H70: =VLOOKUP(C70,'2014-15 A&E Tariff'!$A$5:$C$15,3,FALSE) -> 58 | I70: 0 | J70: 0 | K70: 58 | L70: 0 | M70: 58
C71: VB11Z | D71: No investigation with no significant treatment | E71: - | F71: - | H71: =VLOOKUP(C71,'2014-15 A&E Tariff'!$A$5:$C$15,3,FALSE) -> 57 | I71: 0 | J71: 0 | K71: 57 | L71: 0 | M71: 57

Sheet Link Sheet
B1: 2015-16 tariff - accident & emergency | H1: 2014-15 tariff - accident & emergency | N1: Difference between 2015/16 & 2013/14
B2: Home | D2: Tariff (£) | J2: Tariff (£) | O2: Tariff (£)
B3: HRG code | C3: HRG name | D3: Type 1 and 2 Departments | E3: Type 3 Departments | H3: HRG code | I3: HRG name | J3: Type 1 and 2 Departments | K3: Type 3 Departments | N3: HRG code | O3: Type 1 and 2 Departments | P3: Type 3 Departments
B4: VB01Z | C4: Any investigation with category 5 treatment | D4: =VLOOKUP(B4:B14,'A&E 15-16 Draft Model'!$C$21:$L$32,7,FALSE) -> 233.0662428 | E4: =MIN($D$4:$D$14) -> 55.54486318 | H4: VB01Z | I4: Any investigation with category 5 treatment | J4: =VLOOKUP(H4,'2014-15 A&E Tariff'!$A$5:$D$15,3, FALSE) -> 235 | K4: =VLOOKUP(I4,'2014-15 A&E Tariff'!$B$5:$E$15,3, FALSE) -> 57 | N4: VB01Z | O4: =(D4/J4)-1 -> -0.008228753904 | P4: =(E4/K4)-1 -> -0.02552871615
B5: VB02Z | C5: Category 3 investigation with category 4 treatment | D5: =VLOOKUP(B5:B15,'A&E 15-16 Draft Model'!$C$21:$L$32,7,FALSE) -> 220.2668505 | E5: =MIN($D$4:$D$14) -> 55.54486318 | H5: VB02Z | I5: Category 3 investigation with category 4 treatment | J5: =VLOOKUP(H5,'2014-15 A&E Tariff'!$A$5:$D$15,3, FALSE) -> 208 | K5: =VLOOKUP(I5,'2014-15 A&E Tariff'!$B$5:$E$15,3, FALSE) -> 57 | N5: VB02Z | O5: =(D5/J5)-1 -> 0.05897524265 | P5: -0.02552871615
B6: VB03Z | C6: Category 3 investigation with category 1-3 treatment | D6: =VLOOKUP(B6:B16,'A&E 15-16 Draft Model'!$C$21:$L$32,7,FALSE) -> 187.091783 | E6: 55.54486318 | H6: VB03Z | I6: Category 3 investigation with category 1-3 treatment | J6: =VLOOKUP(H6,'2014-15 A&E Tariff'!$A$5:$D$15,3, FALSE) -> 163 | K6: =VLOOKUP(I6,'2014-15 A&E Tariff'!$B$5:$E$15,3, FALSE) -> 57 | N6: VB03Z | O6: =(D6/J6)-1 -> 0.1478023498 | P6: =(E6/K6)-1 -> -0.02552871615
B7: VB04Z | C7: Category 2 investigation with category 4 treatment | D7: =VLOOKUP(B7:B17,'A&E 15-16 Draft Model'!$C$21:$L$32,7,FALSE) -> 164.5065304 | E7: 55.54486318 | H7: VB04Z | I7: Category 2 investigation with category 4 treatment | J7: =VLOOKUP(H7,'2014-15 A&E Tariff'!$A$5:$D$15,3, FALSE) -> 138 | K7: =VLOOKUP(I7,'2014-15 A&E Tariff'!$B$5:$E$15,3, FALSE) -> 57 | N7: VB04Z | O7: 0.1920763076 | P7: -0.02552871615
B8: VB05Z | C8: Category 2 investigation with category 3 treatment | D8: =VLOOKUP(B8:B18,'A&E 15-16 Draft Model'!$C$21:$L$32,7,FALSE) -> 142.6016446 | E8: 55.54486318 | H8: VB05Z | I8: Category 2 investigation with category 3 treatment | J8: =VLOOKUP(H8,'2014-15 A&E Tariff'!$A$5:$D$15,3, FALSE) -> 129 | K8: =VLOOKUP(I8,'2014-15 A&E Tariff'!$B$5:$E$15,3, FALSE) -> 57 | N8: VB05Z | O8: 0.1054391055 | P8: -0.02552871615
B9: VB06Z | C9: Category 1 investigation with category 3-4 treatment | D9: =VLOOKUP(B9:B19,'A&E 15-16 Draft Model'!$C$21:$L$32,7,FALSE) -> 99.66250008 | E9: 55.54486318 | H9: VB06Z | I9: Category 1 investigation with category 3-4 treatment | J9: =VLOOKUP(H9,'2014-15 A&E Tariff'!$A$5:$D$15,3, FALSE) -> 101 | K9: =VLOOKUP(I9,'2014-15 A&E Tariff'!$B$5:$E$15,3, FALSE) -> 57 | N9: VB06Z | O9: -0.01324257349 | P9: -0.02552871615
B10: VB07Z | C10: Category 2 investigation with category 2 treatment | D10: =VLOOKUP(B10:B20,'A&E 15-16 Draft Model'!$C$21:$L$32,7,FALSE) -> 124.7793467 | E10: 55.54486318 | H10: VB07Z | I10: Category 2 investigation with category 2 treatment | J10: =VLOOKUP(H10,'2014-15 A&E Tariff'!$A$5:$D$15,3, FALSE) -> 118 | K10: =VLOOKUP(I10,'2014-15 A&E Tariff'!$B$5:$E$15,3, FALSE) -> 57 | N10: VB07Z | O10: 0.05745209107 | P10: -0.02552871615
B11: VB08Z | C11: Category 2 investigation with category 1 treatment | D11: =VLOOKUP(B11:B21,'A&E 15-16 Draft Model'!$C$21:$L$32,7,FALSE) -> 113.344881 | E11: 55.54486318 | H11: VB08Z | I11: Category 2 investigation with category 1 treatment | J11: =VLOOKUP(H11,'2014-15 A&E Tariff'!$A$5:$D$15,3, FALSE) -> 109 | K11: =VLOOKUP(I11,'2014-15 A&E Tariff'!$B$5:$E$15,3, FALSE) -> 57 | N11: VB08Z | O11: 0.03986129316 | P11: -0.02552871615
B12: VB09Z | C12: Category 1 investigation with category 1-2 treatment | D12: =VLOOKUP(B12:B22,'A&E 15-16 Draft Model'!$C$21:$L$32,7,FALSE) -> 79.18790065 | E12: 55.54486318 | H12: VB09Z | I12: Category 1 investigation with category 1-2 treatment | J12: =VLOOKUP(H12,'2014-15 A&E Tariff'!$A$5:$D$15,3, FALSE) -> 77 | K12: =VLOOKUP(I12,'2014-15 A&E Tariff'!$B$5:$E$15,3, FALSE) -> 57 | N12: VB09Z | O12: 0.0284142941 | P12: -0.02552871615
B13: VB10Z | C13: Dental Care | D13: =VLOOKUP(B13:B23,'A&E 15-16 Draft Model'!$C$21:$L$32,7,FALSE) -> 56.24776713 | E13: 55.54486318 | H13: VB10Z | I13: Dental Care | J13: =VLOOKUP(H13,'2014-15 A&E Tariff'!$A$5:$D$15,3, FALSE) -> 58 | K13: =VLOOKUP(I13,'2014-15 A&E Tariff'!$B$5:$E$15,3, FALSE) -> 57 | N13: VB10Z | O13: -0.03021091154 | P13: -0.02552871615
B14: VB11Z | C14: No investigation with no significant treatment | D14: =VLOOKUP(B14:B24,'A&E 15-16 Draft Model'!$C$21:$L$32,7,FALSE) -> 55.54486318 | E14: 55.54486318 | H14: VB11Z | I14: No investigation with no significant treatment | J14: =VLOOKUP(H14,'2014-15 A&E Tariff'!$A$5:$D$15,3, FALSE) -> 57 | K14: =VLOOKUP(I14,'2014-15 A&E Tariff'!$B$5:$E$15,3, FALSE) -> 57 | N14: VB11Z | O14: -0.02552871615 | P14: -0.02552871615
